[Event "Early-Titled-Tuesday-Blitz-January-23-2024"]
[Site "Chess.com"]
[Date "2024.01.23"]
[Round "3"]
[White "mac0504"]
[Black "IlanSchnaider"]
[Result "1-0"]
[WhiteElo "2574"]
[BlackElo "2795"]
[TimeControl "180+1"]
[EndTime "8:27:37 PST"]
[Termination "mac0504 won by resignation"]

1. c4 {[%clk 0:03:00.9]} 1... Nf6 {[%clk 0:02:59.9]} 2. Nc3 {[%clk 0:03:01.3]}
2... g6 {[%clk 0:03:00.1]} 3. g3 {[%clk 0:03:01.7]} 3... Bg7 {[%clk 0:03:00.6]}
4. Bg2 {[%clk 0:03:02.4]} 4... O-O {[%clk 0:03:01.3]} 5. Nf3 {[%clk 0:03:03]}
5... d5 {[%clk 0:03:01.8]} 6. cxd5 {[%clk 0:03:03.1]} 6... Nxd5 {[%clk
0:03:02.7]} 7. O-O {[%clk 0:03:03.9]} 7... Nc6 {[%clk 0:03:03.4]} 8. Qa4 {[%clk
0:03:02.9]} 8... e5 {[%clk 0:02:56.9]} 9. Nxd5 {[%clk 0:02:58.6]} 9... Qxd5
{[%clk 0:02:56.5]} 10. d3 {[%clk 0:02:59.1]} 10... Bg4 {[%clk 0:02:53.7]} 11.
Qxg4 {[%clk 0:02:58.6]} 11... Rad8 {[%clk 0:02:18.8]} 12. Be3 {[%clk 0:02:57.1]}
12... Qb5 {[%clk 0:02:16.9]} 13. Rab1 {[%clk 0:02:49]} 13... Nb4 {[%clk
0:02:15.5]} 14. a3 {[%clk 0:02:44.5]} 14... Nd5 {[%clk 0:02:14.5]} 15. Bd2
{[%clk 0:02:39.1]} 15... Nf6 {[%clk 0:02:12.5]} 16. Qb4 {[%clk 0:02:35.2]} 16...
Qd5 {[%clk 0:01:53.2]} 17. Ng5 {[%clk 0:02:28.5]} 17... Qd7 {[%clk 0:01:44.6]}
18. Qxb7 {[%clk 0:02:28.5]} 18... h6 {[%clk 0:01:41.6]} 19. Ne4 {[%clk
0:02:28.6]} 19... Nh5 {[%clk 0:01:36.5]} 20. Rfc1 {[%clk 0:02:24.6]} 20... Rc8
{[%clk 0:01:28.8]} 21. Qc6 {[%clk 0:02:15.9]} 21... Qd8 {[%clk 0:01:04.3]} 22.
Nc5 {[%clk 0:02:15.6]} 22... Re8 {[%clk 0:00:54.4]} 23. Nb7 {[%clk 0:01:53.8]}
23... Qe7 {[%clk 0:00:50.6]} 24. Bb4 {[%clk 0:01:53.4]} 24... Qg5 {[%clk
0:00:46.3]} 25. Rc4 {[%clk 0:01:39.7]} 25... Re6 {[%clk 0:00:39.9]} 26. Qf3
{[%clk 0:01:29.1]} 26... e4 {[%clk 0:00:16.5]} 27. Rxe4 {[%clk 0:01:26.2]} 27...
Rf6 {[%clk 0:00:16.3]} 28. Qg4 {[%clk 0:01:24.5]} 28... Qxg4 {[%clk 0:00:11.4]}
29. Rxg4 {[%clk 0:01:25.4]} 29... Rb6 {[%clk 0:00:06.4]} 30. Rc4 {[%clk
0:01:19.6]} 30... Nf6 {[%clk 0:00:04.5]} 31. Nc5 {[%clk 0:01:14.3]} 31... Ne8
{[%clk 0:00:01.8]} 32. Ne4 {[%clk 0:00:51.4]} 32... Rd8 {[%clk 0:00:01.7]} 33.
Bc3 {[%clk 0:00:49.7]} 33... f5 {[%clk 0:00:01.7]} 34. Bxg7 {[%clk 0:00:41.4]}
34... fxe4 {[%clk 0:00:01.8]} 35. Bd4 {[%clk 0:00:41.8]} 35... Rbd6 {[%clk
0:00:01.6]} 36. Bc5 {[%clk 0:00:42.2]} 36... R6d7 {[%clk 0:00:01.3]} 37. Bxe4
{[%clk 0:00:42.1]} 37... Nf6 {[%clk 0:00:01.7]} 38. Bxg6 {[%clk 0:00:42.2]}
38... Kg7 {[%clk 0:00:01.4]} 39. Bf5 {[%clk 0:00:42.8]} 39... Rd5 {[%clk
0:00:01.3]} 40. Be6 {[%clk 0:00:43.2]} 40... Re5 {[%clk 0:00:01.5]} 41. Bg4
{[%clk 0:00:40.5]} 41... Rxc5 {[%clk 0:00:01.8]} 42. Rxc5 {[%clk 0:00:39.6]}
42... Nxg4 {[%clk 0:00:02.4]} 43. Rxc7+ {[%clk 0:00:40.3]} 43... Rd7 {[%clk
0:00:02.8]} 44. Rxd7+ {[%clk 0:00:40.6]} 1-0

[Event "Early-Titled-Tuesday-Blitz-January-23-2024"]
[Site "Chess.com"]
[Date "2024.01.23"]
[Round "3"]
[White "CrimeFightingSpider07"]
[Black "Ati1517"]
[Result "1-0"]
[WhiteElo "2480"]
[BlackElo "2231"]
[TimeControl "180+1"]
[EndTime "8:27:37 PST"]
[Termination "CrimeFightingSpider07 won by resignation"]

1. g3 {[%clk 0:02:35.9]} 1... e5 {[%clk 0:02:57.3]} 2. Bg2 {[%clk 0:02:35.4]}
2... d5 {[%clk 0:02:55.3]} 3. d4 {[%clk 0:02:26.5]} 3... exd4 {[%clk 0:02:45.6]}
4. Qxd4 {[%clk 0:02:25.2]} 4... c6 {[%clk 0:02:38.4]} 5. e4 {[%clk 0:02:22.6]}
5... Be6 {[%clk 0:02:36.8]} 6. exd5 {[%clk 0:02:19.9]} 6... cxd5 {[%clk
0:02:31.5]} 7. Nc3 {[%clk 0:02:19.7]} 7... Nc6 {[%clk 0:02:30.3]} 8. Qa4 {[%clk
0:02:19.5]} 8... Nf6 {[%clk 0:02:28]} 9. Bg5 {[%clk 0:02:18.5]} 9... Bc5 {[%clk
0:01:56.6]} 10. O-O-O {[%clk 0:02:00.5]} 10... O-O {[%clk 0:01:44]} 11. Nxd5
{[%clk 0:01:52.7]} 11... Bxd5 {[%clk 0:01:39.5]} 12. Bxd5 {[%clk 0:01:48.6]}
12... Qe7 {[%clk 0:01:24.6]} 13. Bxc6 {[%clk 0:01:42.3]} 13... bxc6 {[%clk
0:01:21.4]} 14. Qxc6 {[%clk 0:01:42]} 14... Bxf2 {[%clk 0:01:20.2]} 15. Bxf6
{[%clk 0:01:40]} 15... gxf6 {[%clk 0:01:08]} 16. Nh3 {[%clk 0:01:34.6]} 16...
Be3+ {[%clk 0:01:06.4]} 17. Kb1 {[%clk 0:01:34.2]} 17... Rfc8 {[%clk 0:01:03]}
18. Qd7 {[%clk 0:01:29.8]} 18... Qc5 {[%clk 0:00:57.7]} 19. Qd3 {[%clk
0:01:26.8]} 19... Rab8 {[%clk 0:00:57.4]} 20. Nf4 {[%clk 0:01:14]} 20... Qe5
{[%clk 0:00:33.3]} 21. b3 {[%clk 0:01:08.2]} 21... Rc3 {[%clk 0:00:30]} 22. Qd6
{[%clk 0:01:04.4]} 22... Qxd6 {[%clk 0:00:19.6]} 23. Rxd6 {[%clk 0:01:03]} 23...
Bxf4 {[%clk 0:00:19.6]} 24. gxf4 {[%clk 0:01:02.9]} 24... Rf3 {[%clk 0:00:19]}
25. Rxf6 {[%clk 0:01:01.9]} 25... Kg7 {[%clk 0:00:19]} 26. Rf5 {[%clk 0:01:02]}
26... Kg6 {[%clk 0:00:18.8]} 27. Rg5+ {[%clk 0:01:02]} 27... Kf6 {[%clk
0:00:19.4]} 28. Ra5 {[%clk 0:01:02]} 28... Rb7 {[%clk 0:00:18.4]} 29. Ra4 {[%clk
0:01:01.2]} 29... Kf5 {[%clk 0:00:18]} 30. Rc1 {[%clk 0:00:43.3]} 30... Rxf4
{[%clk 0:00:17.3]} 31. Rxf4+ {[%clk 0:00:43.3]} 31... Kxf4 {[%clk 0:00:18.2]}
32. c4 {[%clk 0:00:43.9]} 32... Ke4 {[%clk 0:00:18.4]} 33. c5 {[%clk 0:00:44.1]}
33... Kd5 {[%clk 0:00:17.8]} 34. Kb2 {[%clk 0:00:42.2]} 34... Rc7 {[%clk
0:00:18]} 35. b4 {[%clk 0:00:42.3]} 35... Rb7 {[%clk 0:00:17.9]} 36. Kb3 {[%clk
0:00:41.7]} 36... a5 {[%clk 0:00:17.1]} 37. a3 {[%clk 0:00:42.1]} 37... axb4
{[%clk 0:00:17.4]} 38. axb4 {[%clk 0:00:42.4]} 38... f5 {[%clk 0:00:17.4]} 39.
c6 {[%clk 0:00:41.9]} 39... Rc7 {[%clk 0:00:16.6]} 40. b5 {[%clk 0:00:41.9]}
40... Kd6 {[%clk 0:00:17.1]} 41. Kc4 {[%clk 0:00:41.5]} 41... f4 {[%clk
0:00:17]} 42. Rd1+ {[%clk 0:00:41.7]} 42... Ke5 {[%clk 0:00:16.5]} 43. Kc5
{[%clk 0:00:41.5]} 1-0

[Event "Early-Titled-Tuesday-Blitz-January-23-2024"]
[Site "Chess.com"]
[Date "2024.01.23"]
[Round "3"]
[White "vesalhamedinia"]
[Black "pirulillo"]
[Result "1-0"]
[WhiteElo "2505"]
[BlackElo "2274"]
[TimeControl "180+1"]
[EndTime "8:27:37 PST"]
[Termination "vesalhamedinia won by resignation"]

1. d4 {[%clk 0:03:00.9]} 1... Nf6 {[%clk 0:02:59.2]} 2. c4 {[%clk 0:03:01]} 2...
g6 {[%clk 0:02:58.8]} 3. e3 {[%clk 0:03:01.4]} 3... Bg7 {[%clk 0:02:58.4]} 4.
Nf3 {[%clk 0:03:02.3]} 4... O-O {[%clk 0:02:58.3]} 5. Nc3 {[%clk 0:03:02.6]}
5... d6 {[%clk 0:02:58.3]} 6. Be2 {[%clk 0:03:03]} 6... Nbd7 {[%clk 0:02:58.7]}
7. O-O {[%clk 0:03:03.4]} 7... e5 {[%clk 0:02:58.9]} 8. a3 {[%clk 0:03:04]} 8...
e4 {[%clk 0:02:58.6]} 9. Nd2 {[%clk 0:03:03.9]} 9... Re8 {[%clk 0:02:59.5]} 10.
b4 {[%clk 0:03:04.4]} 10... Nf8 {[%clk 0:02:56.7]} 11. a4 {[%clk 0:03:03.9]}
11... a5 {[%clk 0:02:55.8]} 12. bxa5 {[%clk 0:03:03.6]} 12... c6 {[%clk
0:02:54.5]} 13. Ba3 {[%clk 0:03:03.7]} 13... h5 {[%clk 0:02:53.6]} 14. Qc2
{[%clk 0:03:01.1]} 14... Bf5 {[%clk 0:02:50]} 15. d5 {[%clk 0:03:00.9]} 15... c5
{[%clk 0:02:49.3]} 16. Rab1 {[%clk 0:02:58]} 16... Ra7 {[%clk 0:01:45.7]} 17.
Rb6 {[%clk 0:02:48.3]} 17... N8h7 {[%clk 0:01:34.5]} 18. Nb5 {[%clk 0:02:44.8]}
18... Rxa5 {[%clk 0:01:31.8]} 19. Rxd6 {[%clk 0:02:42.8]} 19... Qe7 {[%clk
0:01:24.4]} 20. Bxc5 {[%clk 0:02:38.1]} 20... Ng4 {[%clk 0:01:22.6]} 21. Bxg4
{[%clk 0:02:35.5]} 21... hxg4 {[%clk 0:01:22.3]} 22. Bb4 {[%clk 0:02:33.3]}
22... Qh4 {[%clk 0:01:17.8]} 23. Bxa5 {[%clk 0:02:28.7]} 23... Ng5 {[%clk
0:01:16.4]} 24. Bc3 {[%clk 0:02:21.9]} 24... Nf3+ {[%clk 0:01:11.7]} 25. Nxf3
{[%clk 0:02:07]} 25... gxf3 {[%clk 0:01:12.6]} 26. gxf3 {[%clk 0:00:41]} 26...
exf3 {[%clk 0:01:06.8]} 27. Qxf5 {[%clk 0:00:38.2]} 27... gxf5 {[%clk
0:01:04.8]} 28. Kh1 {[%clk 0:00:35.2]} 28... Bxc3 {[%clk 0:00:52.6]} 29. Nxc3
{[%clk 0:00:33.1]} 29... Kh7 {[%clk 0:00:34]} 30. Nb5 {[%clk 0:00:18.3]} 30...
Rg8 {[%clk 0:00:32.4]} 31. Nd4 {[%clk 0:00:14.5]} 31... Rg2 {[%clk 0:00:29.7]}
32. Nxf3 {[%clk 0:00:14.5]} 32... Qh3 {[%clk 0:00:26.1]} 33. Rg1 {[%clk
0:00:11.8]} 33... Rxf2 {[%clk 0:00:12.6]} 34. Ng5+ {[%clk 0:00:11.2]} 1-0

[Event "Early-Titled-Tuesday-Blitz-January-23-2024"]
[Site "Chess.com"]
[Date "2024.01.23"]
[Round "3"]
[White "Panchenko_Dmitry"]
[Black "SandwichOSaumon"]
[Result "0-1"]
[WhiteElo "2808"]
[BlackElo "2532"]
[TimeControl "180+1"]
[EndTime "8:27:42 PST"]
[Termination "SandwichOSaumon won on time"]

1. e4 {[%clk 0:03:00.9]} 1... e5 {[%clk 0:02:54.5]} 2. f4 {[%clk 0:02:59.1]}
2... exf4 {[%clk 0:02:52.3]} 3. Nf3 {[%clk 0:02:52.2]} 3... Ne7 {[%clk
0:02:51.2]} 4. d4 {[%clk 0:02:44.1]} 4... d6 {[%clk 0:02:50.5]} 5. Bxf4 {[%clk
0:02:37.5]} 5... Ng6 {[%clk 0:02:47.6]} 6. Bg3 {[%clk 0:02:30.9]} 6... Be7
{[%clk 0:02:46.4]} 7. Nc3 {[%clk 0:02:11.2]} 7... Nc6 {[%clk 0:02:45.1]} 8. Qd2
{[%clk 0:02:07.8]} 8... O-O {[%clk 0:02:38.4]} 9. O-O-O {[%clk 0:02:04.5]} 9...
Bg4 {[%clk 0:02:31.1]} 10. Kb1 {[%clk 0:01:59.7]} 10... Nh4 {[%clk 0:02:22.5]}
11. Nxh4 {[%clk 0:01:53.9]} 11... Bxd1 {[%clk 0:02:19]} 12. Nf5 {[%clk
0:01:51.1]} 12... Bg4 {[%clk 0:02:14.5]} 13. Ne3 {[%clk 0:01:48.6]} 13... Bg5
{[%clk 0:02:12.4]} 14. h4 {[%clk 0:01:47.7]} 14... Bh6 {[%clk 0:02:11.7]} 15.
Ncd5 {[%clk 0:01:42]} 15... Ne7 {[%clk 0:02:06.3]} 16. Nf4 {[%clk 0:01:40.8]}
16... Bd7 {[%clk 0:02:00.9]} 17. Bc4 {[%clk 0:01:34.6]} 17... c6 {[%clk
0:01:57.2]} 18. Rf1 {[%clk 0:01:24.5]} 18... b5 {[%clk 0:01:56.8]} 19. Bd3
{[%clk 0:01:24.2]} 19... f5 {[%clk 0:01:52.7]} 20. e5 {[%clk 0:01:21.4]} 20...
dxe5 {[%clk 0:01:40.8]} 21. dxe5 {[%clk 0:01:22.3]} 21... Ng6 {[%clk 0:01:40.5]}
22. Nxg6 {[%clk 0:01:06]} 22... hxg6 {[%clk 0:01:41.4]} 23. Bf4 {[%clk
0:00:56.6]} 23... Bxf4 {[%clk 0:01:31]} 24. Rxf4 {[%clk 0:00:57.5]} 24... Be6
{[%clk 0:01:31.3]} 25. Qf2 {[%clk 0:00:54]} 25... Qc7 {[%clk 0:01:28.5]} 26. h5
{[%clk 0:00:48.2]} 26... g5 {[%clk 0:01:18.8]} 27. Bxf5 {[%clk 0:00:46.6]} 27...
Bxf5 {[%clk 0:00:50.6]} 28. Rxf5 {[%clk 0:00:46.7]} 28... Qxe5 {[%clk
0:00:51.1]} 29. g4 {[%clk 0:00:39.4]} 29... Rxf5 {[%clk 0:00:36.9]} 30. Nxf5
{[%clk 0:00:39.2]} 30... Re8 {[%clk 0:00:36.3]} 31. Kc1 {[%clk 0:00:17]} 31...
Qf4+ {[%clk 0:00:34.9]} 32. Qxf4 {[%clk 0:00:16.4]} 32... gxf4 {[%clk
0:00:35.8]} 33. Nh4 {[%clk 0:00:16.2]} 33... Re3 {[%clk 0:00:30.9]} 34. Kd2
{[%clk 0:00:15.7]} 34... Rg3 {[%clk 0:00:25.1]} 35. Ke2 {[%clk 0:00:13.7]} 35...
Rxg4 {[%clk 0:00:23.7]} 36. Ng6 {[%clk 0:00:14.2]} 36... Rg2+ {[%clk 0:00:22.2]}
37. Kd3 {[%clk 0:00:13.5]} 37... f3 {[%clk 0:00:21.9]} 0-1

[Event "Early-Titled-Tuesday-Blitz-January-23-2024"]
[Site "Chess.com"]
[Date "2024.01.23"]
[Round "3"]
[White "pospisku"]
[Black "SnekkerAndersen"]
[Result "0-1"]
[WhiteElo "2291"]
[BlackElo "2641"]
[TimeControl "180+1"]
[EndTime "8:27:43 PST"]
[Termination "SnekkerAndersen won on time"]

1. e4 {[%clk 0:03:00.9]} 1... e5 {[%clk 0:02:52.2]} 2. Nf3 {[%clk 0:02:56.8]}
2... Nc6 {[%clk 0:02:52.5]} 3. Bc4 {[%clk 0:02:56.2]} 3... Nf6 {[%clk
0:02:52.3]} 4. d3 {[%clk 0:02:56]} 4... Be7 {[%clk 0:02:51.7]} 5. O-O {[%clk
0:02:56]} 5... O-O {[%clk 0:02:51.7]} 6. Nbd2 {[%clk 0:02:55.5]} 6... d6 {[%clk
0:02:50.7]} 7. c3 {[%clk 0:02:52.3]} 7... Na5 {[%clk 0:02:50.3]} 8. Bb5 {[%clk
0:02:51.1]} 8... a6 {[%clk 0:02:41.3]} 9. Ba4 {[%clk 0:02:51]} 9... b5 {[%clk
0:02:42.2]} 10. Bc2 {[%clk 0:02:51.1]} 10... c5 {[%clk 0:02:40.5]} 11. Re1
{[%clk 0:02:39]} 11... Nc6 {[%clk 0:02:39.3]} 12. Nf1 {[%clk 0:02:39.1]} 12...
Re8 {[%clk 0:02:39.7]} 13. Ng3 {[%clk 0:02:33.2]} 13... g6 {[%clk 0:02:38.7]}
14. d4 {[%clk 0:02:23.2]} 14... exd4 {[%clk 0:02:34.6]} 15. cxd4 {[%clk
0:02:23.1]} 15... Bf8 {[%clk 0:02:35.3]} 16. d5 {[%clk 0:02:08.7]} 16... Nb4
{[%clk 0:02:33.6]} 17. Bb1 {[%clk 0:02:08]} 17... a5 {[%clk 0:02:33.4]} 18. a4
{[%clk 0:02:06.3]} 18... bxa4 {[%clk 0:02:32.3]} 19. Rxa4 {[%clk 0:01:54.2]}
19... Bd7 {[%clk 0:02:32.1]} 20. Ra3 {[%clk 0:01:54.2]} 20... Bb5 {[%clk
0:02:28.9]} 21. Bd2 {[%clk 0:01:24.8]} 21... Bg7 {[%clk 0:02:27.5]} 22. Bc3
{[%clk 0:01:18.2]} 22... Nd7 {[%clk 0:02:27.6]} 23. h3 {[%clk 0:01:10.2]} 23...
Ne5 {[%clk 0:02:26.4]} 24. Nxe5 {[%clk 0:01:06.6]} 24... Bxe5 {[%clk 0:02:27.3]}
25. Bxe5 {[%clk 0:01:02.8]} 25... Rxe5 {[%clk 0:02:28.2]} 26. f4 {[%clk
0:01:03.2]} 26... Re8 {[%clk 0:02:27.6]} 27. e5 {[%clk 0:01:02.8]} 27... dxe5
{[%clk 0:02:26.1]} 28. fxe5 {[%clk 0:01:02.2]} 28... Qxd5 {[%clk 0:02:17.9]} 29.
Qxd5 {[%clk 0:00:50.4]} 29... Nxd5 {[%clk 0:02:18.8]} 30. Ne4 {[%clk 0:00:45.9]}
30... Kg7 {[%clk 0:02:08.2]} 31. Nxc5 {[%clk 0:00:20.1]} 31... Rac8 {[%clk
0:02:02.5]} 32. Nb7 {[%clk 0:00:20.5]} 32... Rc6 {[%clk 0:01:27]} 33. Nd6 {[%clk
0:00:20.3]} 33... Rxd6 {[%clk 0:01:25.7]} 34. Rxa5 {[%clk 0:00:17.8]} 34... Bc6
{[%clk 0:01:18.6]} 35. Ba2 {[%clk 0:00:14.4]} 35... Nf4 {[%clk 0:01:08.3]} 36.
Rf1 {[%clk 0:00:12.3]} 36... Rd4 {[%clk 0:01:08.6]} 37. Ra7 {[%clk 0:00:11.2]}
37... Bd5 {[%clk 0:01:06.5]} 38. Bxd5 {[%clk 0:00:08.7]} 38... Nxd5 {[%clk
0:01:03]} 39. Rfxf7+ {[%clk 0:00:09.2]} 39... Kh6 {[%clk 0:01:02.8]} 40. Rxh7+
{[%clk 0:00:09.7]} 40... Kg5 {[%clk 0:01:03.2]} 41. Raf7 {[%clk 0:00:08]} 41...
Rxe5 {[%clk 0:00:58.1]} 42. Kh2 {[%clk 0:00:08.3]} 42... Nf4 {[%clk 0:00:50.6]}
43. Rh8 {[%clk 0:00:02.8]} 43... Rd2 {[%clk 0:00:48.2]} 44. Kg3 {[%clk
0:00:01.7]} 44... Re3+ {[%clk 0:00:44.2]} 45. Kh2 {[%clk 0:00:01.9]} 45... Rxg2+
{[%clk 0:00:45.1]} 0-1

[Event "Early-Titled-Tuesday-Blitz-January-23-2024"]
[Site "Chess.com"]
[Date "2024.01.23"]
[Round "3"]
[White "Matols"]
[Black "abelmat"]
[Result "1-0"]
[WhiteElo "2386"]
[BlackElo "2143"]
[TimeControl "180+1"]
[EndTime "8:27:43 PST"]
[Termination "Matols won on time"]

1. d4 {[%clk 0:03:00.9]} 1... d5 {[%clk 0:02:59.1]} 2. c4 {[%clk 0:03:01.2]}
2... e6 {[%clk 0:02:57.4]} 3. Nf3 {[%clk 0:03:01.7]} 3... Nf6 {[%clk 0:02:56.6]}
4. g3 {[%clk 0:03:02.1]} 4... Be7 {[%clk 0:02:55.5]} 5. Bg2 {[%clk 0:03:02.5]}
5... O-O {[%clk 0:02:54.3]} 6. O-O {[%clk 0:03:03]} 6... dxc4 {[%clk 0:02:53.5]}
7. Qc2 {[%clk 0:03:03.4]} 7... a6 {[%clk 0:02:52]} 8. a4 {[%clk 0:03:03.8]} 8...
Bd7 {[%clk 0:02:50.5]} 9. Qxc4 {[%clk 0:03:04.1]} 9... Bc6 {[%clk 0:02:48.6]}
10. Bf4 {[%clk 0:03:04.4]} 10... Nd5 {[%clk 0:02:45.8]} 11. Bd2 {[%clk
0:02:48.5]} 11... b5 {[%clk 0:02:43.7]} 12. Qd3 {[%clk 0:02:42.4]} 12... Nd7
{[%clk 0:02:32.2]} 13. a5 {[%clk 0:02:37.1]} 13... Bb7 {[%clk 0:02:17.7]} 14.
Rc1 {[%clk 0:02:29.2]} 14... c5 {[%clk 0:02:14.9]} 15. e4 {[%clk 0:02:18.7]}
15... c4 {[%clk 0:02:08.3]} 16. Qe2 {[%clk 0:02:15.5]} 16... Nb4 {[%clk
0:02:03.9]} 17. Nc3 {[%clk 0:01:44.9]} 17... Nd3 {[%clk 0:01:57.8]} 18. Rcb1
{[%clk 0:01:43]} 18... Bb4 {[%clk 0:01:44.6]} 19. b3 {[%clk 0:01:39.1]} 19...
Bxc3 {[%clk 0:01:15]} 20. Bxc3 {[%clk 0:01:35.8]} 20... Nf6 {[%clk 0:01:03.8]}
21. bxc4 {[%clk 0:01:21.4]} 21... Bxe4 {[%clk 0:01:02.8]} 22. d5 {[%clk
0:01:17]} 22... exd5 {[%clk 0:00:47.4]} 23. cxd5 {[%clk 0:01:13.2]} 23... Nxd5
{[%clk 0:00:42.7]} 24. Bxg7 {[%clk 0:01:03.9]} 24... Re8 {[%clk 0:00:35.1]} 25.
Bd4 {[%clk 0:00:47.3]} 25... N3b4 {[%clk 0:00:20.2]} 26. Qd2 {[%clk 0:00:40.3]}
26... Bxb1 {[%clk 0:00:16.9]} 27. Rxb1 {[%clk 0:00:38.3]} 27... Qd6 {[%clk
0:00:15.2]} 28. Nh4 {[%clk 0:00:25.2]} 28... Rad8 {[%clk 0:00:12.4]} 29. Qg5+
{[%clk 0:00:23.3]} 29... Qg6 {[%clk 0:00:04]} 30. Nxg6 {[%clk 0:00:22.5]} 30...
hxg6 {[%clk 0:00:04.4]} 31. h4 {[%clk 0:00:20.7]} 31... Re6 {[%clk 0:00:02.5]}
32. h5 {[%clk 0:00:20.2]} 32... Rde8 {[%clk 0:00:01.6]} 33. hxg6 {[%clk
0:00:19.8]} 1-0

[Event "Early-Titled-Tuesday-Blitz-January-23-2024"]
[Site "Chess.com"]
[Date "2024.01.23"]
[Round "3"]
[White "ElCoachRene"]
[Black "Ducke13"]
[Result "1-0"]
[WhiteElo "1926"]
[BlackElo "2315"]
[TimeControl "180+1"]
[EndTime "8:27:44 PST"]
[Termination "ElCoachRene won on time"]

1. Nf3 {[%clk 0:03:00.9]} 1... Nf6 {[%clk 0:02:58.8]} 2. d4 {[%clk 0:02:56.8]}
2... g6 {[%clk 0:02:58.8]} 3. Bf4 {[%clk 0:02:56.6]} 3... Bg7 {[%clk 0:02:58.2]}
4. h3 {[%clk 0:02:56.5]} 4... d6 {[%clk 0:02:56.7]} 5. e3 {[%clk 0:02:56.9]}
5... O-O {[%clk 0:02:56.8]} 6. Nbd2 {[%clk 0:02:55.9]} 6... Nc6 {[%clk
0:02:55.7]} 7. Bb5 {[%clk 0:02:55.3]} 7... Nd7 {[%clk 0:02:47.5]} 8. Bxc6 {[%clk
0:02:54.7]} 8... bxc6 {[%clk 0:02:47.3]} 9. O-O {[%clk 0:02:54.5]} 9... a5
{[%clk 0:02:47.3]} 10. a4 {[%clk 0:02:53.5]} 10... Ba6 {[%clk 0:02:44.7]} 11.
Re1 {[%clk 0:02:52.3]} 11... Rb8 {[%clk 0:02:44.9]} 12. b3 {[%clk 0:02:50.5]}
12... c5 {[%clk 0:02:45.4]} 13. c3 {[%clk 0:01:27.3]} 13... cxd4 {[%clk
0:02:20.4]} 14. exd4 {[%clk 0:01:20.9]} 14... c5 {[%clk 0:02:19.2]} 15. c4
{[%clk 0:01:01.5]} 15... cxd4 {[%clk 0:02:17.8]} 16. Rb1 {[%clk 0:00:52.3]}
16... e5 {[%clk 0:02:12.3]} 17. Bg5 {[%clk 0:00:50.8]} 17... f6 {[%clk
0:02:07.4]} 18. Bh4 {[%clk 0:00:50.4]} 18... g5 {[%clk 0:01:51.7]} 19. Bg3
{[%clk 0:00:47.9]} 19... Qb6 {[%clk 0:01:07.9]} 20. Ne4 {[%clk 0:00:38.9]} 20...
h6 {[%clk 0:00:52.5]} 21. Nxd4 {[%clk 0:00:23.3]} 21... f5 {[%clk 0:00:51]} 22.
Nxf5 {[%clk 0:00:10.3]} 22... Rxf5 {[%clk 0:00:47.7]} 23. Nxd6 {[%clk 0:00:10]}
23... Rff8 {[%clk 0:00:40.3]} 24. Nb5 {[%clk 0:00:06.1]} 24... Bxb5 {[%clk
0:00:38.7]} 25. cxb5 {[%clk 0:00:06.3]} 25... Rbd8 {[%clk 0:00:30.4]} 26. Qd5+
{[%clk 0:00:05.4]} 26... Kh8 {[%clk 0:00:29.4]} 27. Rbd1 {[%clk 0:00:04.7]}
27... Nf6 {[%clk 0:00:20.1]} 28. Qc6 {[%clk 0:00:04.8]} 28... Qxc6 {[%clk
0:00:05.4]} 29. bxc6 {[%clk 0:00:05.7]} 29... Rxd1 {[%clk 0:00:04.8]} 30. Rxd1
{[%clk 0:00:06.6]} 30... Ne4 {[%clk 0:00:05.2]} 31. c7 {[%clk 0:00:04.7]} 31...
Nxg3 {[%clk 0:00:04.5]} 32. Rd8 {[%clk 0:00:04.2]} 32... Ne2+ {[%clk 0:00:02.5]}
33. Kf1 {[%clk 0:00:03.6]} 33... Nd4 {[%clk 0:00:01.7]} 34. c8=Q {[%clk
0:00:03.1]} 1-0

[Event "Early-Titled-Tuesday-Blitz-January-23-2024"]
[Site "Chess.com"]
[Date "2024.01.23"]
[Round "3"]
[White "Kotofeyca"]
[Black "FREDERICKtheMATE"]
[Result "0-1"]
[WhiteElo "2351"]
[BlackElo "2566"]
[TimeControl "180+1"]
[EndTime "8:27:45 PST"]
[Termination "FREDERICKtheMATE won on time"]

1. d4 {[%clk 0:03:00.9]} 1... Nf6 {[%clk 0:02:59]} 2. c4 {[%clk 0:03:01]} 2...
e6 {[%clk 0:02:59.3]} 3. Nf3 {[%clk 0:03:00.7]} 3... d5 {[%clk 0:02:57.5]} 4.
Nc3 {[%clk 0:03:00.7]} 4... Be7 {[%clk 0:02:55.6]} 5. cxd5 {[%clk 0:03:00.7]}
5... exd5 {[%clk 0:02:55.5]} 6. Bg5 {[%clk 0:03:00.8]} 6... c6 {[%clk
0:02:53.6]} 7. Qc2 {[%clk 0:03:00.6]} 7... h6 {[%clk 0:02:51.2]} 8. Bh4 {[%clk
0:03:00.2]} 8... Nh5 {[%clk 0:02:50.7]} 9. Bxe7 {[%clk 0:02:57.4]} 9... Qxe7
{[%clk 0:02:51.6]} 10. Nxd5 {[%clk 0:02:56.4]} 10... Qd8 {[%clk 0:02:47.4]} 11.
Nc3 {[%clk 0:02:39.5]} 11... O-O {[%clk 0:02:46]} 12. e3 {[%clk 0:02:39.7]}
12... Bg4 {[%clk 0:02:41.7]} 13. Be2 {[%clk 0:02:33.8]} 13... Nd7 {[%clk
0:02:40.5]} 14. h3 {[%clk 0:02:33.2]} 14... Be6 {[%clk 0:02:40]} 15. Ne5 {[%clk
0:02:21.6]} 15... Nhf6 {[%clk 0:02:38]} 16. Nxd7 {[%clk 0:02:21.6]} 16... Qxd7
{[%clk 0:02:37.6]} 17. Ne4 {[%clk 0:02:12.1]} 17... Nxe4 {[%clk 0:02:35.5]} 18.
Qxe4 {[%clk 0:02:13]} 18... Bd5 {[%clk 0:02:35.5]} 19. Qf4 {[%clk 0:01:53.3]}
19... f5 {[%clk 0:02:01.6]} 20. O-O {[%clk 0:01:34.3]} 20... g5 {[%clk
0:01:59.2]} 21. Qg3 {[%clk 0:01:29]} 21... f4 {[%clk 0:01:59.3]} 22. exf4 {[%clk
0:01:28.9]} 22... Rxf4 {[%clk 0:01:58.7]} 23. Qc3 {[%clk 0:01:00.4]} 23... Qf7
{[%clk 0:01:44]} 24. b3 {[%clk 0:00:56.4]} 24... Rf8 {[%clk 0:01:43.2]} 25. f3
{[%clk 0:00:51.2]} 25... h5 {[%clk 0:01:30.6]} 26. Bc4 {[%clk 0:00:47.4]} 26...
b5 {[%clk 0:01:18.5]} 27. Bxd5 {[%clk 0:00:46.7]} 27... Qxd5 {[%clk 0:01:18.3]}
28. Rfd1 {[%clk 0:00:35.5]} 28... g4 {[%clk 0:01:14.1]} 29. hxg4 {[%clk
0:00:35.7]} 29... hxg4 {[%clk 0:01:14.1]} 30. fxg4 {[%clk 0:00:19.4]} 30... Rxg4
{[%clk 0:01:13.1]} 31. Rd2 {[%clk 0:00:19.5]} 31... Rf5 {[%clk 0:01:09.2]} 32.
Rf1 {[%clk 0:00:18.4]} 32... Rfg5 {[%clk 0:01:06.5]} 33. Rff2 {[%clk 0:00:18.4]}
33... Rg3 {[%clk 0:00:48.8]} 34. Qb4 {[%clk 0:00:12.8]} 34... Qd8 {[%clk
0:00:36.5]} 35. d5 {[%clk 0:00:09.7]} 35... a5 {[%clk 0:00:31.1]} 36. Qf4 {[%clk
0:00:09.2]} 36... cxd5 {[%clk 0:00:30]} 37. Qf7+ {[%clk 0:00:08.9]} 37... Kh8
{[%clk 0:00:30.1]} 38. Rd4 {[%clk 0:00:08.2]} 38... Rg7 {[%clk 0:00:24.9]} 39.
Rh4+ {[%clk 0:00:07]} 39... Qxh4 {[%clk 0:00:24.1]} 40. Qf8+ {[%clk 0:00:01.8]}
40... Rg8 {[%clk 0:00:23.7]} 41. Qf5 {[%clk 0:00:02.7]} 41... Qg5 {[%clk
0:00:22.4]} 0-1